bitfinex-derivatives/quotes_SOLF0:USTF0_20240816
["timestamp","ask_amount","ask_price","bid_price","bid_amount"]
[1723837916011,0.04970375,141.05,141.03,3.59130531]
[1723837916310,0.04970375,141.05,141.03,0.04770531]
[1723837916513,42.60970375,141.05,141.03,0.04770531]
[1723837916711,0.04970375,141.05,141.03,0.04770531]
[1723837919618,0.04970375,141.05,141.03,3.59140531]
[1723837920119,3.59290375,141.05,141.03,0.04770531]
[1723837920420,0.04970375,141.05,141.03,0.04770531]
[1723837920926,0.04970375,141.05,140.92,1.1608]
[1723837920927,42.60970375,141.05,140.92,1.1608]
[1723837921109,42.56,141.02,140.93,47.9]
[1723837921310,46.10843054,141.02,140.92,1.1608]
[1723837921518,42.56,141.0,140.91,42.56]
[1723837921923,46.08149748,141.0,140.89,47.9]
[1723837922125,0.05315976,140.97,140.94,0.05314274]
[1723837922523,0.05315976,140.97,140.95,3.5456]
[1723837923517,0.05315976,140.97,140.96,3.5455]
[1723837924742,1.3242,141.04,141.03,3.5437]
[1723837924928,1.3242,141.04,140.98,42.56]
[1723837925327,1.3242,141.04,141.02,3.5439]
[1723837925524,1.3242,141.04,140.98,42.56]
[1723837925826,5.34,141.06,141.03,3.5437]
[1723837926014,5.34,141.06,141.0,0.04565195]
[1723837926217,5.38527235,141.06,140.96,42.56]
[1723837926415,3.5435,141.04,141.02,0.04474201]
[1723837926620,5.34,141.06,141.02,0.04474201]
[1723837926824,0.05276026,141.04,141.02,0.04474201]
[1723837927227,3.45947227,141.03,141.02,0.04474201]
[1723837927419,0.05276026,141.04,141.02,0.04474201]
[1723837927821,3.49526847,141.03,141.02,0.04474201]
[1723837928824,3.5437,141.03,140.99,3.5445]
[1723837929229,3.52114097,141.02,140.94,42.56]
[1723837929429,42.56,141.05,140.94,42.56]
[1723837929824,0.04893282,141.01,140.98,0.04638968]
[1723837930127,3.57436795,141.01,140.98,0.04638968]
[1723837930436,1.44373282,141.01,140.98,0.04638968]
[1723837930828,0.04893282,141.01,140.99,3.5447]
[1723837931125,0.04893282,141.01,140.98,0.04638968]
[1723837931326,3.59323282,141.01,140.98,3.59118968]
[1723837931528,0.04893282,141.01,140.98,0.04638968]
[1723837931928,3.59323282,141.01,140.98,3.59118968]
[1723837933634,0.04893282,141.01,140.98,0.04638968]
[1723837934235,0.04893282,141.01,141.0,3.5445]
[1723837934924,0.04893282,141.01,140.99,3.5446]
[1723837935136,0.04893282,141.01,140.98,0.04638968]
[1723837935533,0.04893282,141.01,141.0,3.5445]
[1723837940934,4.87581617,141.07,141.02,42.56]
[1723837941236,1.368,141.07,141.02,42.56]
[1723837941831,0.04761734,141.06,141.04,3.5432]
[1723837942135,0.04761734,141.06,141.03,0.05345232]
[1723837942837,0.04761734,141.06,141.04,3.5433]
[1723837943231,0.04761734,141.06,141.03,0.05345232]
[1723837943531,0.04761734,141.06,141.05,3.5432]
[1723837943936,0.04761734,141.06,141.03,0.05345232]
[1723837944136,0.04761734,141.06,141.04,3.5433]
[1723837945933,0.04761734,141.06,141.05,3.5432]
[1723837948644,0.04761734,141.06,141.05,46.1032]
[1723837949945,0.04761734,141.06,141.05,37.5732]
[1723837950443,0.04761734,141.06,141.03,0.05345232]
[1723837952038,3.59081734,141.06,141.03,0.05345232]
[1723837952541,3.59061734,141.06,141.03,3.59695232]
[1723837952751,0.04761734,141.06,141.03,3.59695232]
[1723837953343,0.04761734,141.06,141.05,3.5432]
[1723837962751,0.04761734,141.06,141.04,3.5434]
[1723837962961,0.04761734,141.06,141.03,0.05345232]
[1723837963455,0.04761734,141.06,141.03,3.59705232]
[1723837964347,0.04761734,141.06,141.03,0.05345232]
[1723837965352,0.04761734,141.06,141.05,3.5432]
[1723837965943,0.04761734,141.06,141.03,0.05345232]
[1723837966648,3.5438,141.03,141.0,3.5443]
[1723837967345,4.8936,141.04,141.01,3.5442]
[1723837967747,4.94667369,141.04,141.01,3.59738149]
[1723837968640,3.5437,141.03,141.01,0.05318149]
[1723837968846,1.40307369,141.04,141.01,0.05318149]
[1723837969445,3.5437,141.03,141.01,0.05318149]
[1723837969847,1.40307369,141.04,141.01,0.05318149]
[1723837970050,3.5439,141.03,141.01,0.05318149]
[1723837970253,1.40307369,141.04,141.01,0.05318149]
[1723837970445,6.74307369,141.04,141.01,0.05318149]
[1723837971140,3.5439,141.03,141.01,0.05318149]
[1723837971343,1.40307369,141.04,141.01,0.05318149]
[1723837972451,0.05307369,141.04,141.01,34.06318149]
[1723837972654,0.05307369,141.04,141.03,34.01]
[1723837972859,0.05307369,141.04,141.03,37.5537]
[1723837973153,2.6505,141.08,141.03,34.01]
[1723837973455,2.6505,141.08,141.05,3.543]
[1723837974152,2.6505,141.08,141.05,3.59110891]
[1723837974153,2.70232547,141.08,141.05,3.59110891]
[1723837974347,2.70232547,141.08,141.05,0.04810891]
[1723837974567,0.05182547,141.08,141.07,3.5427]
[1723837978554,0.05182547,141.08,141.06,3.5429]
[1723837979461,0.05182547,141.08,141.07,3.5427]
[1723837980260,0.05182547,141.08,141.06,3.5429]
[1723837981351,3.62298667,141.08,141.06,3.5429]
[1723837981548,0.05182547,141.08,141.06,3.5429]
[1723837982051,3.67010616,141.08,141.06,3.5429]
[1723837982754,0.05182547,141.08,141.07,3.5427]
[1723837983563,0.05182547,141.08,141.06,3.5429]
[1723837986750,3.59432547,141.08,141.05,3.59130891]
[1723837986950,3.59432547,141.08,141.05,0.04810891]
[1723837987550,3.59432547,141.08,141.05,3.59120891]
[1723837987759,3.59432547,141.08,141.05,0.04810891]
[1723837987954,0.05182547,141.08,141.06,3.5429]
[1723837988456,0.05182547,141.08,141.05,0.04810891]
[1723837988657,3.59432547,141.08,141.06,3.543]
[1723837989258,0.05182547,141.08,141.07,3.5427]
[1723837995759,6.6728,141.13,141.11,3.5417]
[1723837995966,10.15821939,141.13,141.07,34.03]
[1723837996259,13.69951939,141.13,141.07,34.03]
[1723837996956,0.05456538,141.11,141.1,3.5419]
[1723837997157,0.05456538,141.11,141.1,37.5719]
[1723838004361,6.6388,141.17,141.1,34.03]
[1723838004667,6.6388,141.17,141.06,8.3369]
[1723838004668,10.1794,141.17,141.12,34.03]
[1723838004862,3.48996332,141.16,141.13,3.5413]
[1723838005060,6.6388,141.17,141.12,34.03]
[1723838005258,6.6388,141.17,141.15,3.541]
[1723838005458,0.05096752,141.16,141.15,3.541]
[1723838010371,8.8597,141.21,141.18,3.5401]
[1723838010971,7.16660707,141.2,141.17,37.5704]
[1723838011174,3.5398,141.2,141.17,37.5704]
[1723838011465,3.56735424,141.2,141.18,3.5402]
[1723838011665,3.56735424,141.2,141.17,34.07533611]
[1723838012170,3.56735424,141.2,141.17,37.61573611]
[1723838013171,0.04570793,141.2,141.17,37.61573611]
[1723838013366,0.04570793,141.2,141.18,3.5403]
[1723838013567,0.04570793,141.2,141.17,34.07533611]
[1723838014067,0.04570793,141.2,141.19,3.54]
[1723838014865,3.51350513,141.23,141.21,3.5393]
[1723838015063,10.1693,141.25,141.21,34.03]
[1723838015466,5.32,141.25,141.21,34.03]
[1723838015778,3.5384,141.26,141.21,34.03]
[1723838015968,3.5384,141.26,141.23,3.539]
[1723838016372,0.04502119,141.25,141.23,3.539]
[1723838016976,0.04502119,141.25,141.24,3.5388]
[1723838017365,0.04502119,141.25,141.22,34.07637101]
[1723838017769,0.04502119,141.25,141.23,3.5389]
[1723838017968,0.04502119,141.25,141.22,34.07637101]
[1723838018472,0.04502119,141.25,141.24,3.5388]
[1723838018678,0.04502119,141.25,141.24,37.5688]
[1723838019171,3.58870698,141.28,141.24,34.03]
[1723838019376,1.3424,141.31,141.27,34.03]
[1723838019875,3.47580781,141.3,141.29,3.5374]
[1723838020268,3.47580781,141.3,141.27,34.03]
[1723838020475,3.47580781,141.3,141.28,3.58604955]
[1723838020770,1.39116505,141.31,141.28,0.04834955]
[1723838021080,3.61194648,141.3,141.28,0.04834955]
[1723838021671,4.92826505,141.31,141.28,0.04834955]
[1723838022276,3.52562768,141.3,141.28,3.58604955]
[1723838022476,1.39116505,141.31,141.28,0.04834955]
[1723838022678,3.49591138,141.3,141.28,0.04834955]
[1723838022877,3.49591138,141.3,141.29,3.5375]
[1723838025499,3.49591138,141.3,141.28,0.04834955]
[1723838025778,1.39116505,141.31,141.28,0.04834955]
[1723838025985,5.01550211,141.31,141.16,7.0812]
[1723838026285,35.3724,141.31,141.21,34.03]
[1723838026482,3.5382,141.27,141.23,3.539]
[1723838026778,3.5382,141.27,141.21,34.03]
[1723838027288,0.05349119,141.25,141.24,3.5386]
[1723838031775,3.5374,141.3,141.27,3.538]
[1723838032084,4.95152361,141.31,141.26,34.03]
[1723838032085,8.48862361,141.31,141.26,34.03]
[1723838032786,8.48862361,141.31,141.28,3.5376]
[1723838032988,0.05078098,141.3,141.28,34.03]
[1723838033513,0.05078098,141.3,141.29,3.5373]
[1723838035689,0.05078098,141.3,141.28,37.5677]
[1723838036083,0.05078098,141.3,141.27,0.04904803]
[1723838036480,0.05078098,141.3,141.27,3.58684803]
[1723838037592,3.58808098,141.3,141.27,3.58684803]
[1723838038085,3.5377,141.29,141.27,0.04904803]
[1723838038680,0.05078098,141.3,141.27,0.04904803]
[1723838039089,3.58828098,141.3,141.27,3.58704803]
[1723838039289,3.58828098,141.3,141.27,0.04904803]
[1723838039994,3.5375,141.29,141.27,0.04904803]
[1723838040194,0.05078098,141.3,141.27,0.04904803]
[1723838040495,3.58808098,141.3,141.27,0.04904803]
[1723838040999,3.58808098,141.3,141.27,3.58694803]
[1723838041595,0.05078098,141.3,141.28,3.5377]
[1723838043196,0.05078098,141.3,141.27,0.04904803]
[1723838043595,3.58818098,141.3,141.27,3.58684803]
[1723838043795,3.58818098,141.3,141.27,0.04904803]
[1723838043990,0.05078098,141.3,141.28,34.03]
[1723838044187,0.05078098,141.3,141.29,3.5375]
[1723838045188,0.05078098,141.3,141.29,37.5675]
[1723838046386,5.3,141.34,141.32,3.5366]
[1723838046588,5.3,141.34,141.27,34.07904803]
[1723838046589,1.3502,141.36,141.31,34.03]
[1723838046796,4.94677919,141.36,141.31,34.03]
[1723838047000,4.8861,141.36,141.33,3.5364]
[1723838047596,8.4801723,141.36,141.33,3.58443856]
[1723838048594,1.4021653,141.36,141.33,0.04803856]
[1723838048995,4.99152122,141.36,141.33,0.04803856]
[1723838049204,8.52732122,141.36,141.34,3.5361]
[1723838049600,8.52732122,141.36,141.33,3.58443856]
[1723838050003,3.536,141.35,141.33,3.58443856]
[1723838050302,3.536,141.35,141.33,0.04803856]
[1723838050510,4.99152122,141.36,141.33,0.04803856]
[1723838050705,8.52742122,141.36,141.33,3.58453856]
[1723838051203,3.5363,141.34,141.33,0.04803856]
[1723838051399,4.99152122,141.36,141.33,0.04803856]
[1723838051811,3.5362,141.35,141.33,0.04803856]
[1723838052111,4.99152122,141.36,141.33,0.04803856]
[1723838052304,8.52742122,141.36,141.33,3.58453856]
[1723838052805,8.52742122,141.36,141.34,3.5363]
[1723838053026,8.52742122,141.36,141.33,0.04803856]
[1723838053505,8.52742122,141.36,141.33,3.58443856]
[1723838053706,4.99152122,141.36,141.33,0.04803856]
[1723838054211,4.99152122,141.36,141.34,3.5361]
[1723838055008,8.52732122,141.36,141.33,3.58443856]
[1723838055202,4.99152122,141.36,141.33,0.04803856]
[1723838055611,3.5362,141.35,141.33,0.04803856]
[1723838056113,3.5363,141.34,141.33,0.04803856]
[1723838057415,3.5367,141.33,141.29,34.03]
[1723838058019,3.5367,141.33,141.3,3.5371]
[1723838058714,3.59030021,141.33,141.3,3.58887447]
[1723838058910,3.5368,141.32,141.3,0.05177447]
[1723838059217,0.05360021,141.33,141.25,34.03]
[1723838059511,3.5385,141.26,141.22,34.03]
[1723838059720,3.60153775,141.26,141.22,34.03]
[1723838059909,3.5386,141.25,141.22,37.5693]
[1723838060410,3.58878415,141.25,141.22,37.61444345]
[1723838060715,0.05018415,141.25,141.22,0.04514345]
[1723838061205,3.5389,141.24,141.22,0.04514345]
[1723838061915,0.05018415,141.25,141.22,34.07514345]
[1723838062113,5.35018415,141.25,141.22,34.07514345]
[1723838062514,5.35018415,141.25,141.23,3.5389]
[1723838062712,0.05018415,141.25,141.23,3.5389]
[1723838063227,3.58878415,141.25,141.22,37.61434345]
[1723838064022,3.5389,141.24,141.22,0.04514345]
[1723838064221,0.05018415,141.25,141.22,0.04514345]
[1723838064521,3.5389,141.24,141.22,0.04514345]
[1723838066816,3.539,141.23,141.22,0.04514345]
[1723838072831,3.5388,141.24,141.22,0.04514345]
[1723838073020,1.43678415,141.25,141.22,0.04514345]
[1723838073429,4.97548415,141.25,141.22,0.04514345]
[1723838073924,0.05018415,141.25,141.23,3.5389]
[1723838074124,0.05018415,141.25,141.22,34.07514345]
[1723838074723,0.05018415,141.25,141.23,3.539]
[1723838076326,3.58878415,141.25,141.22,37.61434345]
[1723838076728,3.5388,141.24,141.22,37.61434345]
[1723838076929,0.05018415,141.25,141.22,37.61434345]
[1723838077129,0.05018415,141.25,141.22,34.07514345]
[1723838077439,3.58878415,141.25,141.22,34.07514345]
[1723838077625,3.58878415,141.25,141.22,3.58444345]
[1723838077927,0.05018415,141.25,141.22,0.04514345]
[1723838078133,3.5388,141.24,141.22,0.04514345]
[1723838080228,3.539,141.23,141.22,0.04514345]
[1723838083035,6.1508,141.24,141.22,0.04514345]
[1723838083935,4.8254,141.24,141.22,0.04514345]
[1723838085236,3.539,141.23,141.22,0.04514345]
[1723838085827,4.8254,141.24,141.22,0.04514345]
[1723838086936,4.8254,141.24,141.22,3.58434345]
[1723838087435,0.05018415,141.25,141.23,3.5389]
[1723838087640,0.05018415,141.25,141.22,0.04514345]
[1723838088146,0.05018415,141.25,141.23,3.539]
[1723838088939,0.05018415,141.25,141.22,3.58434345]
[1723838089339,3.58888415,141.25,141.22,3.58434345]
[1723838091440,0.05018415,141.25,141.22,3.58434345]
[1723838092349,3.58878415,141.25,141.22,3.58434345]
[1723838093442,0.05018415,141.25,141.22,0.04514345]
[1723838094044,3.58888415,141.25,141.22,3.58444345]
[1723838095145,0.05018415,141.25,141.23,3.5388]
[1723838095547,0.05018415,141.25,141.22,0.04514345]
[1723838095748,3.58888415,141.25,141.22,3.58424345]
[1723838098953,0.05018415,141.25,141.22,0.04514345]
[1723838099547,3.539,141.23,141.22,0.04514345]
[1723838099746,0.05018415,141.25,141.22,0.04514345]
[1723838099952,3.5389,141.24,141.22,0.04514345]
[1723838100347,0.05018415,141.25,141.22,0.04514345]
[1723838100551,34.03,141.23,141.13,34.03]
[1723838100748,10.59515155,141.22,141.13,34.03]
[1723838100959,3.5405,141.18,141.14,3.5412]
[1723838101549,0.04719466,141.17,141.13,34.03]
[1723838101751,0.04719466,141.17,141.15,0.05377643]
[1723838103163,3.5408,141.16,141.15,0.05377643]
[1723838103349,5.34719466,141.17,141.08,34.03]
[1723838103556,5.29914761,141.16,141.08,34.03]
[1723838103859,5.29936625,141.15,141.08,34.03]
[1723838104060,1.3085,141.16,141.08,34.03]
[1723838104255,3.5417,141.13,141.08,34.03]
[1723838104451,1.3085,141.16,141.08,34.03]
[1723838104759,0.04588972,141.12,141.11,3.542]
[1723838104953,1.3801,141.2,141.11,34.03]
[1723838105154,6.6801,141.2,141.15,34.03]
[1723838105351,10.2201,141.2,141.16,3.5406]
[1723838105751,5.3,141.2,141.15,34.03]
[1723838106164,0.04604187,141.19,141.16,0.04700518]
[1723838106354,7.09451335,141.18,141.16,0.04700518]
[1723838106554,3.5403,141.18,141.16,0.04700518]
[1723838106854,0.04604187,141.19,141.16,0.04700518]
[1723838107257,39.32830687,141.18,141.16,0.04700518]
[1723838107456,6.63400687,141.17,141.1,3.5421]
[1723838107660,1.3357,141.17,141.1,3.5421]
[1723838107856,3.5411,141.15,141.09,34.03]
[1723838108056,1.3357,141.17,141.09,34.03]
[1723838108452,3.5411,141.15,141.11,3.5418]
[1723838108656,0.05353418,141.14,141.12,0.05100124]
[1723838110154,3.5415,141.13,141.12,0.05100124]
[1723838110463,0.05353418,141.14,141.05,34.03]
[1723838110767,5.3,141.15,141.08,37.5726]
[1723838110961,5.3,141.15,141.08,34.03]
[1723838111164,3.5418,141.13,141.09,3.5424]
[1723838111559,0.05273928,141.12,141.1,0.04620032]
[1723838112168,0.05273928,141.12,141.1,3.58840032]
[1723838113073,0.05273928,141.12,141.11,3.542]
[1723838113369,5.3,141.16,141.1,34.07620032]
[1723838113668,5.3,141.16,141.14,37.5711]
[1723838113967,7.11621564,141.18,141.14,37.5711]
[1723838114366,7.11621564,141.18,141.15,0.0535308]
[1723838114367,0.04967347,141.17,141.15,0.0535308]
[1723838115165,3.5408,141.16,141.15,0.0535308]
[1723838115665,3.59027347,141.17,141.15,0.0535308]
[1723838116171,0.04967347,141.17,141.15,0.0535308]
[1723838116363,0.04967347,141.17,141.16,3.5408]
[1723838120272,0.04967347,141.17,141.15,37.6245308]
[1723838120467,0.04967347,141.17,141.15,3.5945308]
[1723838120660,0.04967347,141.17,141.15,0.0535308]
[1723838121667,0.04967347,141.17,141.16,3.5408]
[1723838121867,5.3,141.2,141.15,34.0835308]
[1723838122066,3.5394,141.22,141.19,3.54]
[1723838123162,3.58921496,141.22,141.19,3.59184334]
[1723838123458,3.5397,141.21,141.19,0.05184334]
[1723838124464,0.04981496,141.22,141.19,0.05184334]
[1723838124465,58.5398,141.2,141.19,0.05184334]
[1723838124966,63.83786648,141.2,141.19,0.05184334]
[1723838125167,69.11786648,141.2,141.19,0.05184334]
[1723838126060,38.44306648,141.2,141.19,0.05184334]
[1723838126265,26.38306648,141.2,141.19,0.05184334]
[1723838127165,24.6248,141.2,141.19,0.05184334]
[1723838127366,29.92266545,141.2,141.19,0.05184334]
[1723838127776,24.6248,141.2,141.19,0.05184334]
[1723838128270,29.92248563,141.2,141.19,0.05184334]
[1723838129178,3.54,141.19,141.18,1.005]
[1723838131778,8.83815404,141.19,141.18,1.005]
[1723838132568,8.83820338,141.19,141.18,1.005]
[1723838132769,47.79820338,141.19,141.1,42.5]
[1723838132977,6.61770338,141.18,141.08,1.36]
[1723838133172,6.61770338,141.18,141.12,3.5416]
[1723838133481,6.61770338,141.18,141.07,47.78]
[1723838133482,47.79820338,141.17,141.07,47.78]
[1723838133682,5.29820338,141.16,141.11,4.5469]
[1723838133867,3.5415,141.14,141.11,4.5469]
[1723838134062,7.0881822,141.14,141.12,0.04720428]
[1723838134679,3.5415,141.13,141.12,0.04720428]
[1723838141875,3.5415,141.13,141.11,1.005]
[1723838141876,3.5418,141.12,141.11,1.005]
[1723838142178,8.8218,141.12,141.11,1.005]
[1723838142482,14.12394087,141.12,141.11,1.005]
[1723838144181,53.08214087,141.12,141.04,1.005]
[1723838144386,5.30310543,141.11,141.04,1.005]
[1723838144577,3.5426,141.09,141.06,3.5432]
[1723838145082,3.59536404,141.09,141.06,3.59307679]
[1723838145578,3.5428,141.08,141.06,0.04987679]
[1723838146481,8.823,141.07,141.06,0.04987679]
[1723838146982,3.5436,141.05,141.04,1.005]
[1723838147176,5.28,141.07,140.97,1.005]
[1723838147177,34.0,141.04,140.97,1.005]
[1723838147474,37.6002182,141.04,140.98,3.5451]
[1723838147682,37.6002182,141.04,140.97,1.005]
[1723838147871,34.0,141.02,140.97,1.005]
[1723838148070,5.28,141.01,140.99,0.0282814]
[1723838148284,8.8352199,141.01,140.99,0.0282814]
[1723838148477,3.5552199,141.01,140.99,0.0282814]
[1723838148883,0.0532599,141.02,140.99,0.0282814]
[1723838149091,0.0532599,141.02,140.99,3.5731814]
[1723838149092,3.5975599,141.02,140.99,3.5731814]
[1723838149276,5.28,141.01,140.99,3.5731814]
[1723838151484,0.0532599,141.02,141.0,3.5448]
[1723838151690,0.0532599,141.02,141.0,34.0]
[1723838152183,0.0532599,141.02,141.01,3.5446]
[1723838153383,0.0532599,141.02,141.0,3.5447]
[1723838153890,3.5976599,141.02,140.99,3.5732814]
[1723838154190,0.0532599,141.02,140.99,0.0282814]
[1723838154592,0.0532599,141.02,141.0,3.5448]
[1723838154991,0.0532599,141.02,140.99,0.0282814]
[1723838156191,3.5976599,141.02,140.99,3.5732814]
[1723838156390,0.0532599,141.02,140.99,0.0282814]
[1723838156899,0.0532599,141.02,141.0,3.5447]
[1723838157085,0.0532599,141.02,140.99,0.0282814]
[1723838157286,0.0532599,141.02,141.0,3.5448]
[1723838157994,0.0532599,141.02,141.01,3.5446]
[1723838160203,0.0532599,141.02,140.99,0.0282814]
[1723838160204,0.0532599,141.02,141.0,3.5447]
[1723838160404,0.0532599,141.02,140.99,0.0282814]
[1723838160906,0.0532599,141.02,141.0,3.5448]
[1723838162011,0.0532599,141.02,140.99,0.0282814]
[1723838162710,0.0532599,141.02,141.01,3.5446]
[1723838164809,2.6943,141.09,141.01,34.0]
[1723838165002,5.28,141.09,141.04,34.0]
[1723838165806,5.28,141.09,141.06,34.0]
[1723838166109,2.6685,141.13,141.06,34.0]
[1723838166312,0.05329729,141.09,141.06,34.0]
[1723838166507,0.05329729,141.09,141.08,3.5428]
[1723838166911,3.5428,141.08,141.06,0.05248818]
[1723838167115,0.05329729,141.09,141.06,0.05248818]
[1723838167611,0.05329729,141.09,141.06,3.59568818]
[1723838167910,0.05329729,141.09,141.06,0.05248818]
[1723838168810,0.05329729,141.09,141.07,3.543]
[1723838169207,0.05329729,141.09,141.06,3.59568818]
[1723838169208,3.59589729,141.09,141.06,3.59568818]
[1723838173020,0.05329729,141.09,141.07,3.543]
[1723838173516,0.05329729,141.09,141.06,0.05248818]
[1723838174016,0.05329729,141.09,141.07,3.5428]
[1723838174813,0.05329729,141.09,141.06,0.05248818]
[1723838175212,3.59599729,141.09,141.06,3.59558818]
[1723838176316,0.05329729,141.09,141.07,3.5429]
[1723838180022,3.59589729,141.09,141.07,3.5429]
[1723838180721,3.59589729,141.09,141.06,0.05248818]
[1723838180722,0.05329729,141.09,141.06,0.05248818]
[1723838180923,34.0,141.07,141.06,0.05248818]
[1723838181129,34.0,141.05,140.97,35.005]
[1723838181422,3.5444,141.02,140.99,3.5449]
[1723838182026,3.59194494,141.02,140.99,3.5449]
[1723838182217,3.59194494,141.02,140.99,3.57395312]
[1723838182418,0.04754494,141.02,141.0,3.5448]
[1723838182921,0.04754494,141.02,141.01,3.5446]
[1723838184230,0.04754494,141.02,141.0,3.5447]
[1723838184527,0.04754494,141.02,140.99,0.02905312]
[1723838185826,0.04754494,141.02,141.01,3.5446]
[1723838186623,0.04754494,141.02,141.0,3.5448]
[1723838187122,0.04754494,141.02,140.99,0.02905312]
[1723838188027,3.5448,141.0,140.99,0.02905312]
[1723838190826,3.5453,140.98,140.97,1.005]
[1723838191431,37.5453,140.98,140.97,1.005]
[1723838191831,34.0,140.98,140.91,1.005]
[1723838192024,34.0,140.95,140.91,1.005]
[1723838192531,3.5466,140.93,140.91,1.005]
[1723838192929,5.28,140.94,140.91,1.005]
[1723838194535,3.5466,140.93,140.91,1.005]
[1723838194725,5.28,140.94,140.91,1.005]
[1723838195028,3.5468,140.92,140.91,1.005]
[1723838195832,1.33526756,140.93,140.84,1.005]
[1723838196031,1.2829,140.93,140.84,1.005]
[1723838196238,0.04542593,140.9,140.84,1.005]
[1723838196436,0.04542593,140.9,140.85,42.6]
[1723838196637,0.04542593,140.9,140.85,43.9012]
[1723838197736,0.04542593,140.9,140.89,3.5476]
[1723838200538,5.28,140.94,140.88,42.6]
[1723838200839,5.28,140.94,140.88,42.64542593]
[1723838201054,5.28,140.94,140.92,3.5466]
[1723838201635,5.33081053,140.94,140.92,3.59202593]
[1723838202635,5.33081053,140.94,140.92,0.04542593]
[1723838203637,3.5466,140.93,140.92,0.04542593]
[1723838203837,47.93081053,140.94,140.84,43.605]
[1723838204043,3.5472,140.91,140.87,3.5478]
[1723838204239,3.5472,140.91,140.84,43.605]
[1723838204640,3.49250141,140.95,140.88,42.6]
[1723838204942,0.0517816,140.93,140.89,1.3305]
[1723838205146,0.0517816,140.93,140.92,3.5468]
[1723838205733,5.28,140.98,140.96,3.5458]
[1723838205933,5.28,140.98,140.9,42.6]
[1723838206142,3.55489885,140.97,140.9,42.6]
[1723838206342,3.55489885,140.97,140.95,3.546]
[1723838206541,8.8254,140.98,140.95,3.546]
[1723838207143,3.5456,140.97,140.94,3.5463]
[1723838207348,3.5456,140.97,140.95,0.0517816]
[1723838207744,7.09178986,140.97,140.95,0.0517816]
[1723838208048,3.5456,140.97,140.95,0.0517816]
[1723838208439,3.56427543,140.96,140.95,3.5977816]
[1723838208640,8.87436624,140.98,140.95,3.5977816]
[1723838210351,5.32896624,140.98,140.96,3.5457]
[1723838210650,5.32896624,140.98,140.95,0.0517816]
[1723838211844,8.87436624,140.98,140.95,3.5978816]
[1723838212450,3.59431845,140.97,140.95,3.5978816]
[1723838212749,5.32896624,140.98,140.95,0.0517816]
[1723838213146,8.87436624,140.98,140.95,3.5977816]
[1723838213452,5.32896624,140.98,140.95,0.0517816]
[1723838213655,0.04896624,140.98,140.95,0.0517816]
[1723838213952,3.5245581,140.97,140.95,0.0517816]
[1723838214245,3.5245581,140.97,140.96,3.5458]
[1723838214649,0.04896624,140.98,140.95,0.0517816]
[1723838216353,0.04896624,140.98,140.97,3.5456]
[1723838216653,42.64896624,140.98,140.84,43.605]
[1723838216854,42.6,140.95,140.87,1.2904]
[1723838217043,5.26,140.94,140.87,1.2904]
[1723838217545,0.04940672,140.92,140.87,1.2904]
[1723838218545,0.04940672,140.92,140.91,3.5471]
[1723838219854,0.04940672,140.92,140.9,3.5472]
[1723838220350,0.04940672,140.92,140.87,1.2904]
[1723838221549,3.53129587,140.98,140.9,42.6]
[1723838221850,5.26,140.99,140.9,42.6]
[1723838222155,3.60785365,140.98,140.95,3.5458]
[1723838222346,3.60785365,140.98,140.91,1.2769]
[1723838222655,0.04532461,140.96,140.94,3.5462]
[1723838222951,0.04532461,140.96,140.93,0.04907293]
[1723838223458,0.04532461,140.96,140.94,3.5461]
[1723838225059,0.04532461,140.96,140.93,3.59557293]
[1723838225257,0.04532461,140.96,140.93,0.04907293]
[1723838225452,0.04532461,140.96,140.94,3.5461]
[1723838225653,0.04532461,140.96,140.93,0.04907293]
[1723838226861,3.59122461,140.96,140.93,3.59547293]
[1723838228052,0.04532461,140.96,140.94,3.5463]
[1723838228252,0.04532461,140.96,140.93,0.04907293]
[1723838228447,0.04532461,140.96,140.94,3.5463]
[1723838228864,0.04532461,140.96,140.93,0.04907293]
[1723838229860,0.04532461,140.96,140.94,3.5461]
[1723838230060,0.04532461,140.96,140.93,0.04907293]
[1723838230355,0.04532461,140.96,140.94,3.5461]
[1723838230658,0.04532461,140.96,140.93,0.04907293]
[1723838230859,0.04532461,140.96,140.94,3.5462]
[1723838232850,3.59112461,140.96,140.93,3.59557293]